{"text_format":"1","workbook":"xlsx","n_sheets":1,"sheets":["البيانات"],"not_rendered":{"charts":0,"images":1,"macros":1,"external_links":0,"defined_names":0,"comments":0,"pivot_tables":0},"unopened":[],"bounds":{"document_bytes":16777216,"sheet_cells":100000,"rows_first":2000,"rows_last":500,"rows_between":2000,"halvings":0,"cell_chars":16384,"cell_head_chars":4096},"cells_cut":0,"cells_raw":0,"read":"whole","date_system":"1900"}

{"sheet":"البيانات","index":0,"n_rows":77,"n_cols":53,"rows_kept":77,"cut":false,"hidden":false,"merged":[[11,38,12,38],[11,44,12,44],[4,37,4,42],[4,43,4,48],[5,37,6,37],[7,38,8,38],[7,44,8,44],[9,38,10,38],[9,44,10,44],[5,38,6,38],[5,39,5,40],[5,44,6,44],[5,43,6,43],[0,0,3,0],[0,2,3,2],[0,3,0,8],[0,9,0,14],[1,3,1,4],[1,5,1,6],[1,7,1,8],[1,9,1,10],[1,11,1,12],[1,13,1,14],[0,1,3,1],[3,18,4,19],[5,18,5,19],[3,37,3,48],[5,48,6,48],[5,45,5,46],[5,47,6,47],[5,41,6,41],[5,42,6,42],[4,22,4,27],[4,28,4,33],[3,22,3,33],[3,21,6,21],[5,32,5,33],[5,22,5,23],[5,24,5,25],[5,26,5,27],[5,28,5,29],[5,30,5,31]]}
["م","الاسم","الاستثناءات","الصف الرابع",null,null,null,null,null,"الصف الخامس"]
[null,null,null,{"$f":"$W$6","v":"2017-07-27"},null,{"$f":"$Y$6","v":"2017-07-30"},null,{"$f":"$AA$6","v":"2017-08-01"},null,{"$f":"$AC$6","v":"2017-07-27"},null,{"$f":"$AE$6","v":"2017-07-30"},null,{"$f":"$AG$6","v":"2017-08-01"},null,"السلام عليكم ورحمة الله وبركاته ارجو المساعدة في هذا الشيت"]
[null,null,null,"الفترة الاولى","الفترة الثانية","الفترة الاولى","الفترة الثانية","الفترة الاولى","الفترة الثانية","الفترة الاولى","الفترة الثانية","الفترة الاولى","الفترة الثانية","الفترة الاولى","الفترة الثانية","ارجو إضافة على الكود عند توزيع اللجان على المدرسين ان لايضع لجنتان "]
[null,null,null,{"$f":"AQ8","v":"لغة عربية "},{"$f":"AQ9","v":"لغة انجليزية"},{"$f":"AQ10","v":"دراسات الاجتماعية"},{"$f":"AQ11","v":"علوم"},{"$f":"AQ12","v":"الرياضيات"},{"$f":"AQ13","v":"دين"},{"$f":"AW8","v":"لغة عربية "},{"$f":"AW9","v":"دين"},{"$f":"AW10","v":"علوم"},{"$f":"AW11","v":"لغة انجليزية"},{"$f":"AW12","v":"دراسات الاجتماعية"},{"$f":"AW13","v":"الرياضيات"},"للمدرس في فترة واحدة مثلا الأستاذ محمد خالد أعطاه الفترة الأولى من الصف الرابع في اليوم الثالث  ",null,null,"توزيع اللجان ",null,null,"رقم اللجنة","دليل توزيع اللجان",null,null,null,null,null,null,null,null,null,null,null,null,null,null,"جدول الامتحانات للصفين الرابع والخامس الابتدائى للعام 2018 / 2019"]
[1,"محمد خالد","لغة عربية ",null,null,null,null,6,null,null,7,4,8,2,1,"ثم كرر نفس الفترة من اليوم الثالث من الصف الخامس وهذا خطأ",null,null,null,null,null,null,"الصف الرابع",null,null,null,null,null,"الصف الخامس",null,null,null,null,null,null,null,null,"جدول امتحانات الصف الرابع الابتدائى",null,null,null,null,null,"جدول امتحانات الصف الخامس الابتدائى"]
[2,"محمود عبدالسلام","دين",null,3,4,null,null,null,null,null,null,null,1,5,"ثانيا",null,null,"بيانات اللجان",null,null,null,{"$f":"$AL$8","v":"2017-07-27"},null,{"$f":"$AL$10","v":"2017-07-30"},null,{"$f":"$AL$12","v":"2017-08-01"},null,{"$f":"$AR$8","v":"2017-07-27"},null,{"$f":"$AR$10","v":"2017-07-30"},null,{"$f":"$AR$12","v":"2017-08-01"},null,null,null,null,"التاريخ","اليوم","وقت الإجابة",null,"زمن الإجابة","المادة","التاريخ","اليوم","وقت الإجابة",null,"زمن الإجابة","المادة",null,null,null,"لغة عربية "]
[3,"خالد عبد الوهاب","الفترة الاولى",5,null,4,1,null,6,7,3,null,null,null,null,"فى عمود الاستثناءات عندما اسم المادة يستثنى المدرس من اعطاءة لجنة في هذه المادة",null,null,"البيانات","عدد",null,null,"الفترة الأولى","الفترة الثانية","الفترة الأولى","الفترة الثانية","الفترة الأولى","الفترة الثانية","الفترة الأولى","الفترة الثانية","الفترة الأولى","الفترة الثانية","الفترة الأولى","الفترة الثانية",null,null,null,null,null,"من","الى",null,null,null,null,"من","الى",null,null,null,null,null,"دين"]
[4,"عصام محمود","دراسات الاجتماعية",2,6,null,7,4,null,3,null,null,8,null,null,"ارجو إضافة على عمود الاستثناءات ان يدخل رقم الفترة سواء الأولى او الفترة الثانية",null,null,"عدد الملاحظين",32,null,1,{"$f":"COUNTIF(D$5:D$68,1)","v":1},2,1,2,1,1,2,2,2,2,2,2,null,null,null,"2017-07-27","الخميس","08:30:00","11:00:00","ساعتان ونصف","لغة عربية ","2017-07-27","الخميس","08:30:00","11:00:00","ساعتان ونصف","لغة عربية ",null,null,null,"علوم"]
[5,"رضا هاشم",null,3,null,null,null,4,null,5,null,8,null,null,2,"في الاستثناءات اذا تم ادخال الفترة الأولى يتسثنى المدرس من ادخالة اى لجنة في الفترة الأولى ويصبح كل لجانة الفترة الثانية",null,null,"عدد اللجان",8,null,2,{"$f":"COUNTIF(D$5:D$68,2)","v":2},2,2,1,1,1,2,0,2,1,2,2,null,null,null,"2017-07-27",null,"11:30:00","01:00:00","ساعة ونصف","لغة انجليزية","2017-07-27",null,"11:30:00","01:00:00","ساعة ونصف","دين",null,null,null,"لغة انجليزية"]
[6,"عماد محمد",null,null,3,2,4,7,6,null,null,1,null,null,null,"وجزاكم الله خير",null,null,"عدد أيام المراقبة",6,null,3,{"$f":"COUNTIF(D$5:D$68,3)","v":2},2,2,1,2,2,2,2,2,2,2,0,null,null,null,"2017-07-30","الاحد","08:30:00","10:00:00","ساعة ونصف","دراسات الاجتماعية","2017-07-30","الاحد","08:30:00","10:00:00","ساعة ونصف","علوم",null,null,null,"دراسات الاجتماعية"]
[7,"فرحات منير",null,4,8,null,7,null,null,3,1,null,null,2,null,null,null,null,"عدد الملاحظين في كل لجنة",2,null,4,{"$f":"COUNTIF(D$5:D$68,4)","v":1},1,2,2,2,2,1,2,2,2,0,2,null,null,null,"2017-07-30",null,"10:30:00","12:00:00","ساعة ونصف","علوم","2017-07-30",null,"10:30:00","12:00:00","ساعة ونصف","لغة انجليزية",null,null,null,"الرياضيات"]
[8,"اشرف فتحى",null,8,7,null,null,5,3,null,null,2,6,null,null,null,null,null,"عدد مواد الامتحان ",12,null,5,{"$f":"COUNTIF(D$5:D$68,5)","v":2},2,1,0,2,1,2,1,2,0,2,2,null,null,null,"2017-08-01","الثلاثاء","08:30:00","10:00:00","ساعة ونصف","الرياضيات","2017-08-01","الثلاثاء","08:30:00","10:00:00","ساعة ونصف","دراسات الاجتماعية",null,null,null,"الفترة الاولى"]
[9,"اشرف ناجى",null,8,null,null,3,null,null,null,5,null,7,1,2,null,null,null,null,null,null,6,{"$f":"COUNTIF(D$5:D$68,6)","v":1},2,2,2,1,2,0,2,2,1,2,1,null,null,null,"2017-08-01",null,"10:30:00","12:00:00","ساعة ونصف","دين","2017-08-01",null,"10:30:00","12:00:00","ساعة ونصف","الرياضيات",null,null,null,"الفترة الثانية"]
[10,"ممدوح الوالى",null,null,null,7,null,null,null,null,6,2,null,null,1,null,null,null,null,null,null,7,{"$f":"COUNTIF(D$5:D$68,7)","v":2},2,2,2,2,2,2,2,0,2,0,2]
[11,"حاتم سعد",null,null,6,null,1,3,5,null,8,null,7,null,null,null,null,null,null,null,null,8,{"$f":"COUNTIF(D$5:D$68,8)","v":2},2,0,2,1,1,0,1,1,2,2,2]
[12,"وليد جبر",null,6,null,5,4,null,null,null,null,null,1,3,8]
[13,"مالك وجيه",null,2,7,null,null,3,8,null,null,6]
[14,"هاشم عبدالرحمن",null,null,null,null,2,null,null,null,null,1,3,8,5]
[15,"صياد عبدالله",null,null,null,2,null,null,null,null,7,5,null,8]
[16,"سعيد سويلم",null,null,null,null,8,null,7,1,6,null,null,3]
[17,"حسن عبدربه",null,null,null,null,null,null,7,2,1]
[18,"ربيع محمد",null,1,8,null,null,null,3,null,null,null,4,5]
[19,"ناجى عبدالحى",null,5,null,null,6,8,2,null,null,4,1]
[20,"طه احمد",null,7,null,3,null,null,null,null,null,5,null,null,4]
[21,"مراد محمد",null,null,4,6,null,null,null,1]
[22,"اسلام عبدالباسط",null,7,null,null,null,null,4,2,null,3,null,6,8]
[23,"هشام خويلد",null,null,null,null,8,null,null,null,null,6,3]
[24,"شريف نور",null,null,1,6,null,null,null,null,null,null,4,5]
[25,"جوده عوده",null,null,2,null,null,7,null,5,4,null,null,null,6]
[26,"احمد محمد",null,3,1,7,null,2]
[27,"منتصر عبدالسلام",null,null,null,null,null,null,null,4,null,3,2,null,7]
[28,"احمد مظهر",null,null,2,3,null,1,null,null,4]
[29,"ممدوح رضوان",null,null,null,null,6,5,1,7]
[30,"اسماعيل يسن",null,null,null,null,null,null,4,null,3,null,null,null,7]
[31,"محمد الوكيل",null,null,5,1,null,null,null,null,null,null,null,6,4]
[32,"ناصر الزيات",null,null,5]
[33,"رشدى اباظة"]
[34,"فريد شوقى"]
[35,"شوقى الخولى"]
[36,"منصور طه"]
[37,"عبدالمرضى الشيخ"]
[38,"نادر عبدالرحمن"]
[39,"صلاح على"]
[40,"احمد شاكر"]
[41,"عبدالفتاح عبدالله"]
[42,"محمد وليد"]
[43,"طه بيومى"]
[44,"كمال عامر"]
[45,"رمضان خليل"]
[46,"محسن جاد"]
[47,"الهادى سعد"]
[48,"عرفة حماد"]
[49,"وائل "]
[50,"احمد جلال"]
[51,"عامر احمد"]
[52,"كريم محمد"]
[53,"السيد رمضان"]
[54,"بشير عبدالفتاح"]
[55,"محمد مجدى"]
[56,"صبحى"]
[57,"حمدى"]
[58,"احمد الصياد"]
[59,"امام"]
[60,"عدنان"]
[61,"يوسف فهمى"]
[62,"إسماعيل مصطفى"]
[63,"يونس فرج"]
[64,"بلال حسن","الفترة الأولى"]
[]
[null,null,1]
[null,null,2]
[null,null,3]
[null,null,4]
[null,null,5]
[null,null,6]
[null,null,7]
[null,null,8]